Cogmind - Beta 13 @@@ ROGUE MODE // 2024.04.06 @ 20:21:43 Player: SPRING Result: Destroyed by X-77 Beamer with Gatling Laser Performance ------------- Evolutions (7) 3500 Regions Visited (16) 3200 Robots Destroyed (256) 1280 Value Destroyed (10055) 10055 Prototype IDs (25) 500 Alien Tech Used (0) 0 Bonus (2060) 2060 TOTAL SCORE: 20595 Bonus ------- High Alert Combat Kills 1023 Follower Combat Kills 185 Entered DSFs 500 Aligned with FarCom 300 Acquired ECA 300 Friendly Fire -248 Cogmind --------- Core Integrity 0/1300 Matter 120/300 Energy 98/100 System Corruption 10% Temperature Cool (24) Movement Core (50) Location -3/Armory Parts ------- > --- POWER (2) -------- (None) > --- PROPULSION (5) --- (None) > --- UTILITY (10) ----- Spectral Analyzer Transport Network Coupler > --- WEAPON (4) ------- (None) > --- INVENTORY (5) ---- Experimental Thermal Generator Graphene Brace Advanced Component Analysis Suite Gamma Bomb Array Kinetic Spear Peak State ------------ > --- POWER ------------ Quantum Reactor Quantum Reactor > --- PROPULSION ------- Biometal Leg Heavy Armored Exoskeleton > --- UTILITY ---------- Advanced Heat Sink Large Storage Unit Encrypted Comm Array Advanced Targeting Computer Core Analyzer Particle Charger Improved Heavy Armor Plating Hacking Suite Advanced Component Analysis Suite > --- WEAPON ----------- Phase Gun Phase Gun Phase Gun Nova Cannon > --- INVENTORY -------- Quantum Reactor Heavy Armored Exoskeleton Nuclear Pulse Array Nuclear Pulse Array Medium Storage Unit Spectral Analyzer Experimental Thermal Shield Improved System Guard Dirty Datajack Ripper [Rating: 139] Favorites ----------- Power Light Antimatter Reactor Engine Ion Engine Power Core Micro Nuclear Core Reactor Light Antimatter Reactor Propulsion Aluminum Leg Treads Medium Treads Leg Aluminum Leg Flight Unit Makeshift Flight Unit Utility Hacking Suite Device Encrypted Comm Array Storage Huge Storage Unit Processor Core Analyzer Hackware Hacking Suite Protection Hardened Medium Armor Plating Weapon Phase Gun Energy Gun Phase Gun Energy Cannon Plasma Cannon Ballistic Gun Light Assault Rifle Ballistic Cannon Gauss Cannon Launcher Rocket Array Special Weapon CPS Tube Impact Weapon Powered Hammer Slashing Weapon Ripper Piercing Weapon Enhanced Force Lance Special Melee Weapon Dirty Datajack Build | -11 -10 -10 -10 -9 -8 -7 -6 -6 -5 -5 -5 -4 -4 -4 -3 -3 ------- Run | Yrd Mat Min Exi Min Mat Fac Fac DSF Fac Upp Upp Fac Upp Upp Res Arm Slots Evolved 14 | . . . . . 4 2 2 . 2 . . 2 . . 2 . Power 1 | . . . . . . . 1 . . . . . . . . . Propulsion 3 | . . . . . 1 1 . . 1 . . . . . . . Utility 8 | . . . . . 2 1 1 . 1 . . 1 . . 2 . Weapon 2 | . . . . . 1 . . . . . . 1 . . . . Parts Attached 326 | 7 11 4 3 3 34 78 5 18 25 17 9 4 22 9 67 10 Power 38 | 1 2 . . 1 5 8 2 1 3 2 2 . 2 . 7 2 Engine 18 | 1 2 . . 1 4 2 2 1 2 . 2 . . . 1 . Core 10 | . . . . . 1 6 . . 1 2 . . . . . . Reactor 10 | . . . . . . . . . . . . . 2 . 6 2 Propulsion 83 | 2 3 . . . 8 21 1 5 6 3 5 1 8 4 12 4 Treads 22 | 2 1 . . . 4 5 . . 2 1 . . 3 4 . . Leg 46 | . 2 . . . 4 16 1 5 4 1 5 1 4 . 3 . Wheel . | . . . . . . . . . . . . . . . . . Hover . | . . . . . . . . . . . . . . . . . Flight 15 | . . . . . . . . . . 1 . . 1 . 9 4 Utility 104 | 2 3 . 2 . 10 19 1 10 5 9 2 2 6 3 28 2 Device 51 | 1 . . 2 . 5 4 . 3 2 5 1 2 5 2 18 1 Storage 7 | 1 1 . . . . . . 1 2 . . . . . 2 . Processor 16 | . 2 . . . 2 3 1 . . 1 . . . . 6 1 Hackware 6 | . . . . . . 5 . . . . . . . . 1 . Protection 24 | . . . . . 3 7 . 6 1 3 1 . 1 1 1 . Artifact . | . . . . . . . . . . . . . . . . . Weapon 101 | 2 3 4 1 2 11 30 1 2 11 3 . 1 6 2 20 2 Energy Gun 25 | . 2 2 1 1 1 3 . . 1 2 . . 4 . 8 . Energy Cannon 4 | . . . . . . . . . 1 1 . . . . 2 . Ballistic Gun 30 | 2 1 . . . 9 10 1 2 3 . . 1 . . 1 . Ballistic Cannon 17 | . . . . . 1 10 . . . . . . . 1 5 . Launcher 10 | . . 2 . 1 . 2 . . 4 . . . . . . 1 Special Weapon 2 | . . . . . . . . . . . . . 1 1 . . Impact Weapon 2 | . . . . . . 1 . . 1 . . . . . . . Slashing Weapon 7 | . . . . . . 4 . . 1 . . . 1 . 1 . Piercing Weapon 2 | . . . . . . . . . . . . . . . 1 1 Special Melee Weapon 2 | . . . . . . . . . . . . . . . 2 . Unidentified Prototypes 18 | . . . 1 . 3 3 . 2 3 . . . . . 5 1 Corrupted Parts 1 | . . . . . . . . . 1 . . . . . . . System Corruption 11 | . . . . . . . . . 11 . . . . . . . Parts Lost 133 | . 3 . . 2 2 43 . 16 22 6 2 . 7 5 9 16 Power 20 | . 1 . . . . 6 . 1 4 1 1 . 2 1 . 3 Propulsion 47 | . 2 . . 1 . 19 . 6 6 2 1 . 2 2 . 6 Utility 36 | . . . . . 2 9 . 5 5 2 . . 1 1 6 5 Weapon 30 | . . . . 1 . 9 . 4 7 1 . . 2 1 3 2 Highest Loss Streak 14 | . 3 . . 2 1 9 . 14 12 4 2 . 5 3 3 10 To Critical Strikes 4 | . . . . 1 . . . . 2 . . . . . . 1 Average Slot Usage (%) 92 | . 98 100 93 90 96 90 92 93 62 88 91 97 97 98 76 45 Engine 5 | . 13 14 14 14 7 3 5 12 7 1 . 10 . . . . Core 2 | . . . . . 1 3 4 . . 9 4 . . . . . Reactor 1 | . . . . . . . . . . . . . 9 9 6 2 Treads 7 | . 9 . . . 16 11 . . . . 4 . 6 6 . . Leg 16 | . 18 28 28 19 9 15 26 25 10 19 14 26 14 18 5 . Device 5 | . . . 2 14 10 2 . 4 5 1 5 10 14 13 15 7 Storage 8 | . 14 14 14 14 9 7 6 5 7 10 5 5 5 5 4 1 Processor 9 | . 12 14 8 . 8 5 13 6 5 10 11 10 10 10 12 14 Hackware 5 | . . . . . . 13 13 9 5 5 5 5 5 5 4 6 Protection 4 | . . . . . 5 6 6 7 5 9 11 10 5 5 3 . Energy Gun 6 | . 12 10 25 21 . 2 . . . 3 5 5 10 10 8 . Ballistic Gun 9 | . 15 7 . . 26 7 15 18 3 . . 2 5 4 . . Ballistic Cannon 1 | . . . . . . 5 . . . . . . . 4 1 . Launcher 1 | . . 10 . 6 . . . . . 5 5 5 2 . . . Naked Turns . | . . . . . . . . . . . . . . . . . Heaviest Build 157 | 12 89 91 90 91 112 157 113 130 72 84 81 81 82 90 110 40 Greatest Support 118 | 40 40 20 20 20 84 104 58 78 73 90 85 90 90 75 118 40 Greatest Overweight (x) 52 | . 4 4 4 9 4 52 1 2 18 1 1 . 2 2 3 6 Average Overweight (x) 1 | . 3 4 4 6 1 1 1 . 1 . . . . 1 . . Largest Inventory Capacity 25 | 8 25 25 25 25 25 25 25 25 15 15 15 15 15 15 15 10 Average Capacity 20 | 7 24 25 25 25 25 25 25 16 12 15 15 15 15 15 13 6 Most Carried 25 | 5 16 14 18 14 25 25 24 25 10 15 15 15 15 15 15 10 Average Carried 16 | 3 12 13 14 13 21 22 23 16 9 10 14 14 14 14 12 6 Final Capacity 25 | 8 25 25 25 25 25 25 25 10 15 15 15 15 15 15 10 5 Final Carried 25 | 5 13 14 14 14 25 25 24 10 9 15 15 15 15 11 10 5 Class Distribution -------------------- 28% | Mutant 12% | Scavenger-Gunner 10% | Hacker-Skirmisher 9% | Gunner 9% | Scavenger-Tank 7% | Derelict-Tank 7% | Scavenger-Skirmisher 7% | Scavenger-Mutant Dominant Class ---------------- Mutant | -10/Materials Mutant | -10/Mines Mutant | -10/Exiles Skirmisher | -9/Mines Gunner | -8/Materials Hacker-Skirmisher | -7/Factory Scavenger-Mutant | -6/Factory Scavenger-Gunner | -6/DSF Mutant | -5/Factory Scavenger-Gunner | -5/Upper Caves Derelict-Tank | -5/Upper Caves Scavenger-Tank | -4/Factory Scavenger-Tank | -4/Upper Caves Scavenger-Gunner | -4/Upper Caves Gunner | -3/Research Assassin | -3/Armory Resources | -11 -10 -10 -10 -9 -8 -7 -6 -6 -5 -5 -5 -4 -4 -4 -3 -3 ----------- Run | Yrd Mat Min Exi Min Mat Fac Fac DSF Fac Upp Upp Fac Upp Upp Res Arm Matter Collected 7230 | 255 465 122 . 22 1286 1961 154 470 337 560 216 . 443 19 920 . Remotely 421 | . . . . . 421 . . . . . . . . . . . Salvage Created 10597 | 212 820 175 . 36 1515 3188 86 648 1218 713 273 . 502 . 1090 121 Parts 529 | 17 51 6 . 7 69 174 4 35 69 30 4 . 6 . 41 16 Haulers Intercepted 15 | . 2 . . . 4 2 1 . 3 . . . . . 3 . Recyclers Shooed 8 | . 4 1 . 1 1 . . . . . . . . . 1 . Parts Field Recycled . | . . . . . . . . . . . . . . . . . Retrieved Matter . | . . . . . . . . . . . . . . . . . Parts Self-Destructed 19 | . . . . . . . . . . 11 3 . 5 . . . Prevented . | . . . . . . . . . . . . . . . . . Kills | -11 -10 -10 -10 -9 -8 -7 -6 -6 -5 -5 -5 -4 -4 -4 -3 -3 ------- Run | Yrd Mat Min Exi Min Mat Fac Fac DSF Fac Upp Upp Fac Upp Upp Res Arm Combat Hostiles Destroyed 198 | . 12 5 . 3 16 74 . 9 19 24 5 . 8 . 13 10 Melee 14 | . . . . . . 4 . . 5 . . . . . 3 2 Guns 71 | . 11 1 . 2 16 20 . 9 1 . . . 4 . 7 . Cannons 56 | . . . . . . 48 . . 2 3 1 . . . 2 . AOE 53 | . . 4 . 1 . 2 . . 9 21 4 . 4 . . 8 Classes Destroyed 23 | 2 6 1 . . 3 5 . 1 1 1 1 . . . . 2 Worker 15 | . 3 . . . 2 3 . . 7 . . . . . . . Builder 8 | . . . . . 1 2 . . 5 . . . . . . . Tunneler 7 | 6 . . . . 1 . . . . . . . . . . . Hauler 15 | . 2 . . . 4 2 1 . 3 . . . . . 3 . Recycler 11 | 1 3 1 . . 4 2 . . . . . . . . . . Mechanic 1 | . . . . . . . . . 1 . . . . . . . Operator 3 | . 1 . . . . . . . 1 . . . . . . 1 Drone 2 | . . . . . . . . . . 2 . . . . . . Watcher 13 | . 3 . . . 5 5 . . . . . . . . . . Swarmer 37 | . 6 . . 3 . 3 . . 7 9 . . . . 3 6 Cutter 1 | . . . . . . . . . . . . . . . . 1 Saboteur 1 | . . . . . . . . . . . . . . . . 1 Grunt 85 | . 6 3 . . 11 37 . 3 4 10 3 . 5 . 2 1 Brawler 2 | . . . . . . . . 1 . 1 . . . . . . Duelist 6 | . . . . . . 3 . . . 2 . . 1 . . . Protector 2 | . . . . . . 2 . . . . . . . . . . Sentry 13 | . . . . . 4 4 . . 1 2 . . 1 . 1 . Specialist 10 | . . . . . . 8 . 2 . . . . . . . . Hunter 11 | . . . . . 1 2 . 2 4 . . . . . 2 . Programmer 23 | . . . . . . 14 . . 3 . . . . . 5 1 Heavy 2 | . . . . . . 1 . 1 . . . . . . . . Behemoth 2 | . . . . . . . . . . . 1 . 1 . . . Assembled 2 | . . 2 . . . . . . . . . . . . . . Butcher 1 | . . . . . . . . . . . 1 . . . . . Best Kill Streak 14 | 3 4 2 . 3 4 10 1 4 14 9 3 . 4 . 3 9 Combat Bots Only 9 | . 4 2 . 3 3 9 . 4 6 9 3 . 4 . 3 8 Max Kills in Single Turn 8 | 1 2 2 . 1 2 2 1 2 6 8 3 . 3 . 1 5 Gunslinging 1 | . 1 . . . . . . 1 . . . . 1 . . . Exploded 8 | . . 2 . 1 . 2 . . 3 8 3 . 2 . . 4 Melee 1 | . . . . . . 1 . . 1 . . . . . 1 1 Uniques/NPCs Destroyed . | . . . . . . . . . . . . . . . . . Combat | -11 -10 -10 -10 -9 -8 -7 -6 -6 -5 -5 -5 -4 -4 -4 -3 -3 -------- Run | Yrd Mat Min Exi Min Mat Fac Fac DSF Fac Upp Upp Fac Upp Upp Res Arm Hostile Shots Fired 1564 | . 89 8 . 17 103 651 . 90 194 49 3 . 39 27 121 173 Missed 446 | . 22 1 . 2 27 200 . 23 39 14 1 . 4 6 31 76 Damage Taken 20765 | . 754 167 . 121 1183 6940 . 1509 3005 949 120 . 1237 653 1934 2193 Core 3321 | . 128 30 . 24 121 696 . 19 580 132 23 . 241 23 267 1037 Absorbed by Shields 59 | . . . . . 20 . . . . . 39 . . . . . Redirected to Shielding 241 | . . . . . . 81 . . 160 . . . . . . . Ignored by Resistances 28 | . . . . . . . . . . . . . 28 . . . Regen/Repaired (Parts) 141 | . 45 . . . 96 . . . . . . . . . . . Core Remaining (%) 57 | 100 . . . 27 78 . . 97 . . 26 . . 77 . . Volleys Fired 508 | 29 101 10 . 7 104 127 2 30 17 19 4 . 10 7 39 2 Largest 4 | 2 2 2 . 2 3 3 3 3 3 3 3 . 4 4 4 1 Hottest 330 | 40 85 85 . 100 76 136 81 83 148 213 213 . 254 275 330 20 Shots Fired 1314 | 58 197 21 1 11 308 390 6 87 27 35 11 . 33 28 99 2 Gun 1031 | 58 197 14 1 10 308 221 6 87 13 2 4 . 23 20 67 . Cannon 241 | . . . . . . 167 . . 8 22 4 . 1 7 32 . Launcher 41 | . . 7 . 1 . 2 . . 6 11 3 . 9 . . 2 Special 1 | . . . . . . . . . . . . . . 1 . . Kinetic 975 | 58 103 7 . . 308 354 6 87 13 . . . 10 13 16 . Thermal 297 | . 94 7 1 10 . 34 . . 8 24 8 . 14 14 83 . Explosive 41 | . . 7 . 1 . 2 . . 6 11 3 . 9 . . 2 Electromagnetic . | . . . . . . . . . . . . . . . . . Robot Hit Streak 27 | 13 12 4 . 8 10 21 10 11 4 10 21 . 27 7 9 3 Robot Miss Streak 8 | 5 6 1 . 2 8 4 1 5 6 4 1 . 2 1 6 . Penetration Max 1 | . . . . . 1 1 . 1 1 . . . 1 . . . Secondary Targets 8 | . 2 . . . 2 . . 3 . . . . 1 . . . Max Gunslinging Chain 1 | . 1 . . . 1 . . 1 . . . . 1 . . . Autonomous 95 | . . . . . . 95 . . . . . . . . . . Shots Hit Robots 907 | 31 106 13 . 8 196 276 6 62 38 23 10 . 29 23 81 5 Core Hits 582 | 13 38 12 . 4 76 130 5 36 50 103 22 . 43 4 30 16 Critical Kills 9 | . 1 . . . . 2 . 1 2 . . . . . 3 . Critical Parts Destroyed 12 | . 1 . . . 2 3 . 1 3 . . . . 1 1 . Critical Strikes 56 | . 9 . . . 2 16 . 2 9 . 1 . . 3 14 . Burn 13 | . 7 . . . . . . . . . 1 . . 1 4 . Meltdown 1 | . . . . . . . . . . . . . . . 1 . Destroy 16 | . 2 . . . 2 3 . 2 2 . . . . 2 3 . Blast 12 | . . . . . . 10 . . . . . . . . 2 . Smash 5 | . . . . . . 2 . . 3 . . . . . . . Sever 9 | . . . . . . 1 . . 4 . . . . . 4 . Melee Attacks 95 | . . . . . . 26 . . 35 . . . 8 . 20 6 Impact 25 | . . . . . . 9 . . 16 . . . . . . . Slashing 64 | . . . . . . 17 . . 19 . . . 8 . 20 . Piercing 6 | . . . . . . . . . . . . . . . . 6 Sneak Attacks 7 | . . . . . . . . . 7 . . . . . . . Combat Hostiles 1 | . . . . . . . . . 1 . . . . . . . Follow-up Attacks . | . . . . . . . . . . . . . . . . . Damage Inflicted 31865 | 352 1413 382 . 118 2976 11552 99 1328 3035 2493 874 . 2343 522 2778 1600 Guns 11990 | 352 1404 103 . 98 2942 3002 99 1328 245 26 79 . 437 406 1469 . Cannons 9304 | . . . . . . 7750 . . 195 276 103 . 26 116 838 . Explosions 7538 | . . 279 . 20 . 419 . . 1157 2191 692 . 1345 . . 1435 Melee 2960 | . . . . . . 351 . . 1438 . . . 535 . 471 165 Ramming 73 | . 9 . . . 34 30 . . . . . . . . . . Kinetic 16709 | 352 599 39 . . 2942 10364 99 1328 245 . . . 174 235 332 . Thermal 4855 | . 805 64 . 98 . 388 . . 465 302 182 . 289 287 1975 . Explosive 7268 | . . 279 . 20 . 419 . . 887 2191 692 . 1345 . . 1435 Electromagnetic . | . . . . . . . . . . . . . . . . . Impact 964 | . . . . . . 146 . . 818 . . . . . . . Slashing 1831 | . . . . . . 205 . . 620 . . . 535 . 471 . Piercing 165 | . . . . . . . . . . . . . . . . 165 Highest Corruption 18 | . 1 1 1 1 1 10 . 1 16 16 18 . . . 4 10 Average Corruption 4 | . 1 1 1 1 1 4 . 1 8 16 16 . . . 1 10 Corruption Purged . | . . . . . . . . . . . . . . . . . Corruption Blocked . | . . . . . . . . . . . . . . . . . Effects 328 | . 21 16 6 2 23 114 . 1 10 102 23 . . . 10 . Message Errors 70 | . 5 6 2 . 2 23 . . 1 25 4 . . . 2 . Matter Fused 87 | . 8 6 1 . 9 30 . . 3 21 5 . . . 4 . Heat Flow Errors 46 | . 2 2 . 2 5 19 . . 1 12 2 . . . 1 . Energy Discharges 45 | . 3 1 1 . 4 17 . . . 14 3 . . . 2 . Parts Rejected 1 | . . . . . . . . . 1 . . . . . . . Parts Fused 3 | . . . . . . 2 . 1 . . . . . . . . Data Loss (minor) 39 | . 1 . 1 . 1 13 . . 2 16 4 . . . 1 . Data Loss (major) 9 | . . . . . 1 5 . . . 3 . . . . . . Misfires 12 | . . 1 1 . 1 3 . . 1 4 1 . . . . . Alerts 8 | . 2 . . . . . . . . 4 2 . . . . . Misdirections 2 | . . . . . . . . . 1 . 1 . . . . . Weapon Failures 6 | . . . . . . 2 . . . 3 1 . . . . . Overload Shots . | . . . . . . . . . . . . . . . . . Overflow Damage 1571 | . . . . . 3 884 . . 319 9 6 . 182 . 77 91 Projectiles 774 | . . . . . . 697 . . . . . . . . 77 . Explosions 262 | . . . . . . 144 . . 5 9 6 . 7 . . 91 Melee 535 | . . . . . 3 43 . . 314 . . . 175 . . . Knockbacks 32 | . . . . . 1 28 . . 1 . . . . . 2 . Impact 2 | . . . . . 1 . . . 1 . . . . . . . Kinetic 28 | . . . . . . 26 . . . . . . . . 2 . Secondary 2 | . . . . . . 2 . . . . . . . . . . Self-Inflicted Damage 1337 | . . 64 . . . 292 . . 417 208 102 . 142 . . 112 Shots 48 | . . 3 . . . 4 . . 16 8 6 . 9 . . 2 Rammed 2 | . . . . . 1 1 . . . . . . . . . . Targets Rammed 10 | . 3 . . . 3 4 . . . . . . . . . . Kicked 8 | . 3 . . . 2 3 . . . . . . . . . . Crushed . | . . . . . . . . . . . . . . . . . Highest Temperature 718 | . 136 276 10 175 218 474 30 493 106 313 265 . 523 718 477 . Average Temperature 107 | . 46 88 7 48 53 123 16 103 54 96 85 . 264 309 197 . Received Heat Transfer 3884 | . 252 78 . . 498 1974 . 144 90 159 18 . 135 72 203 261 Effects 44 | . . . . . . 17 . 6 . 1 . . 6 6 8 . Shutdowns 11 | . . . . . . 3 . 2 . . . . 2 . 4 . Energy Bleed 8 | . . . . . . 4 . . . 1 . . 1 . 2 . Interference 5 | . . . . . . 4 . . . . . . . 1 . . Short Circuit 3 | . . . . . . 1 . . . . . . 1 1 . . Damage (minor) 4 | . . . . . . 1 . . . . . . 1 . 2 . Damage (major) 12 | . . . . . . 4 . 4 . . . . . 4 . . Damage (core) 1 | . . . . . . . . . . . . . 1 . . . Siege Activations . | . . . . . . . . . . . . . . . . . Robots Corrupted . | . . . . . . . . . . . . . . . . . Combat Hostiles . | . . . . . . . . . . . . . . . . . Parts Fried 4 | . . . . . . . . . 3 . 1 . . . . . Impact Corruptions 10 | . . . . . 1 2 . . 6 . . . . . 1 . Robots Melted 2 | . 1 . . . . . . . . . . . . . 1 . Combat Hostiles 2 | . 1 . . . . . . . . . . . . . 1 . Parts Melted 12 | . 2 . . . . 2 . . . . 1 . . . 7 . Heat Transferred 8548 | . 2664 148 . 296 . 814 . . 385 587 385 . 420 481 2368 . Parts Sabotaged . | . . . . . . . . . . . . . . . . . Parts Stolen . | . . . . . . . . . . . . . . . . . Parts Stripped . | . . . . . . . . . . . . . . . . . Power Chain Reactions . | . . . . . . . . . . . . . . . . . Alert | -11 -10 -10 -10 -9 -8 -7 -6 -6 -5 -5 -5 -4 -4 -4 -3 -3 ------- Run | Yrd Mat Min Exi Min Mat Fac Fac DSF Fac Upp Upp Fac Upp Upp Res Arm Peak Influence 1191 | 35 289 77 . 90 182 1191 608 535 851 . . 154 . . 152 607 Initial 583 | . 22 . . . 35 58 583 425 267 . . 154 . . . 22 Average 184 | 15 60 8 . 46 85 335 600 471 387 . . 154 . . 57 296 Maximum Alert Level 4 | . 1 . . . . 4 2 2 3 . . . . . . 2 Low Security (%) 77 | 100 95 100 . 100 100 59 . . . . . 100 . . 100 39 Level 1 6 | . 4 . . . . 9 . . 66 . . . . . . 13 Level 2 9 | . . . . . . 14 100 100 26 . . . . . . 46 Level 3 3 | . . . . . . 10 . . 7 . . . . . . . Level 4 2 | . . . . . . 6 . . . . . . . . . . Level 5 . | . . . . . . . . . . . . . . . . . High Security . | . . . . . . . . . . . . . . . . . Max Security . | . . . . . . . . . . . . . . . . . Sterilizations 1 | . . . . . . . . 1 . . . . . . . . Squads Dispatched 46 | . 2 . . . 3 27 . 1 4 . . 1 . . 5 3 Investigation 13 | . . . . . 2 8 . . 1 . . . . . 2 . Extermination 13 | . . . . . . 10 . . 1 . . . . . 2 . Reinforcement 16 | . 2 . . . 1 5 . 1 2 . . 1 . . 1 3 Assault 4 | . . . . . . 4 . . . . . . . . . . Garrison . | . . . . . . . . . . . . . . . . . Intercept . | . . . . . . . . . . . . . . . . . Searches Triggered . | . . . . . . . . . . . . . . . . . Construction Impeded 1 | . . . . . . . . . 1 . . . . . . . Haulers Reinforced 1 | . . . . . . . . . . . . . . . 1 . Active Scanning Responses . | . . . . . . . . . . . . . . . . . Cargo Convoy Interrupts 1 | . . . . . . 1 . . . . . . . . . . Stealth | -11 -10 -10 -10 -9 -8 -7 -6 -6 -5 -5 -5 -4 -4 -4 -3 -3 --------- Run | Yrd Mat Min Exi Min Mat Fac Fac DSF Fac Upp Upp Fac Upp Upp Res Arm Distress Signals 10 | . 3 . . . 2 1 . . 2 . . . . . . 2 Communications Jammed 6 | . . . . . . . . 6 . . . . . . . . Distress Signals 1 | . . . . . . . . 1 . . . . . . . . Times Spotted 327 | . 33 5 . 3 37 90 . 10 29 25 7 . 8 1 30 49 Peak Tracking Total 29 | . 4 2 . 3 4 6 . 4 9 9 3 . 4 1 10 29 Tactical Retreats 23 | . 1 . . . 2 4 . 1 3 . . . . . 7 5 Traps | -11 -10 -10 -10 -9 -8 -7 -6 -6 -5 -5 -5 -4 -4 -4 -3 -3 ------- Run | Yrd Mat Min Exi Min Mat Fac Fac DSF Fac Upp Upp Fac Upp Upp Res Arm Traps Triggered 12 | . 3 . . . 1 3 . . . . . . . . 4 1 Indirectly . | . . . . . . . . . . . . . . . . . Trap Hack Attempts . | . . . . . . . . . . . . . . . . . Triggered . | . . . . . . . . . . . . . . . . . Disarmed . | . . . . . . . . . . . . . . . . . Reprogrammed . | . . . . . . . . . . . . . . . . . Reused . | . . . . . . . . . . . . . . . . . Traps Extracted . | . . . . . . . . . . . . . . . . . Installed . | . . . . . . . . . . . . . . . . . Triggered 4 | . . . . 1 . 3 . . . . . . . . . . Machines | -11 -10 -10 -10 -9 -8 -7 -6 -6 -5 -5 -5 -4 -4 -4 -3 -3 ---------- Run | Yrd Mat Min Exi Min Mat Fac Fac DSF Fac Upp Upp Fac Upp Upp Res Arm Machines Disabled 29 | . 6 . . 1 4 10 . . 7 . . . . . . 1 Max in Single Turn 7 | . 1 . . 1 1 7 . . 7 . . . . . . 1 Machines Repaired . | . . . . . . . . . . . . . . . . . Machines Dismantled . | . . . . . . . . . . . . . . . . . Machines Sabotaged . | . . . . . . . . . . . . . . . . . Overloaded Fab Kills . | . . . . . . . . . . . . . . . . . Hacking | -11 -10 -10 -10 -9 -8 -7 -6 -6 -5 -5 -5 -4 -4 -4 -3 -3 --------- Run | Yrd Mat Min Exi Min Mat Fac Fac DSF Fac Upp Upp Fac Upp Upp Res Arm Machines Accessed 54 | . 7 . . . 10 21 2 . 1 1 1 1 2 . 8 . Terminals 37 | . 6 . . . 6 16 2 . 1 . 1 . . . 5 . Fabricators 1 | . . . . . . 1 . . . . . . . . . . Repair Stations 5 | . 1 . . . 2 1 . . . . . . . . 1 . Recycling Units 2 | . . . . . 1 . . . . . . . . . 1 . Scanalyzers 4 | . . . . . 1 2 . . . . . . . . 1 . Garrison Access 2 | . . . . . . 1 . . . . . 1 . . . . Total Hacks 128 | . 18 . . . 24 54 3 . 4 1 1 1 2 . 20 . Successful 59 | . 7 . . . 17 22 2 . 1 1 1 . 2 . 6 . Failed 69 | . 11 . . . 7 32 1 . 3 . . 1 . . 14 . Catastrophic 21 | . 1 . . . 3 10 1 . . . . 1 . . 5 . Database Lockouts . | . . . . . . . . . . . . . . . . . Manual 65 | . 11 . 1 . 10 24 2 . 4 . . . . . 13 . Terminals 96 | . 16 . . . 17 40 3 . 4 . 1 . . . 15 . Fabricators 3 | . . . . . . 3 . . . . . . . . . . Repair Stations 9 | . 2 . . . 4 1 . . . . . . . . 2 . Recycling Units 3 | . . . . . 1 . . . . . . . . . 2 . Scanalyzers 11 | . . . . . 2 8 . . . . . . . . 1 . Garrison Access 3 | . . . . . . 2 . . . . . 1 . . . . Terminal Hacks 37 | . 5 . . . 10 11 2 . 1 1 1 . 2 . 4 . Record 6 | . 1 . . . . 2 . . . . 1 . . . 2 . Part Schematic 1 | . . . . . . 1 . . . . . . . . . . Prototype ID Bank 3 | . 2 . . . 1 . . . . . . . . . . . Open Door 3 | . . . . . . . . . . 1 . . 2 . . . Open DSF 4 | . . . . . . 3 1 . . . . . . . . . Terminal Index 6 | . 1 . . . 1 1 1 . 1 . . . . . 1 . Scanalyzer Index 1 | . . . . . 1 . . . . . . . . . . . Alert Level 8 | . . . . . 6 2 . . . . . . . . . . Unreport Threat 3 | . 1 . . . . 1 . . . . . . . . 1 . Dispatch Records 1 | . . . . . 1 . . . . . . . . . . . Recall Investigation 1 | . . . . . . 1 . . . . . . . . . . Fabricator Hacks 3 | . . . . . . 3 . . . . . . . . . . Network Status 1 | . . . . . . 1 . . . . . . . . . . Load Schematic 1 | . . . . . . 1 . . . . . . . . . . Build 1 | . . . . . . 1 . . . . . . . . . . Repair Station Hacks 6 | . 2 . . . 4 . . . . . . . . . . . Scan Component 3 | . 1 . . . 2 . . . . . . . . . . . Repair 3 | . 1 . . . 2 . . . . . . . . . . . Recycling Unit Hacks 3 | . . . . . 1 . . . . . . . . . 2 . Report Inventory 2 | . . . . . 1 . . . . . . . . . 1 . Retrieve Components 1 | . . . . . . . . . . . . . . . 1 . Scanalyzer 10 | . . . . . 2 8 . . . . . . . . . . Insert Component 5 | . . . . . 1 4 . . . . . . . . . . Analyze 5 | . . . . . 1 4 . . . . . . . . . . Garrison Access Hacks . | . . . . . . . . . . . . . . . . . Unauthorized Hacks . | . . . . . . . . . . . . . . . . . Terminals . | . . . . . . . . . . . . . . . . . Fabricators . | . . . . . . . . . . . . . . . . . Repair Stations . | . . . . . . . . . . . . . . . . . Recycling Units . | . . . . . . . . . . . . . . . . . Scanalyzers . | . . . . . . . . . . . . . . . . . Garrison Access . | . . . . . . . . . . . . . . . . . Data Cores Recovered . | . . . . . . . . . . . . . . . . . Used . | . . . . . . . . . . . . . . . . . Hacking Detections 43 | . 7 . . . 8 19 1 . 1 . . 1 . . 6 . Full Trace Events 12 | . . . . . 2 8 . . 1 . . . . . 1 . Feedback Events 1 | . . . . . . 1 . . . . . . . . . . Hackware Fried 1 | . . . . . . 1 . . . . . . . . . . Feedback Blocked . | . . . . . . . . . . . . . . . . . Robot Schematics Acquired . | . . . . . . . . . . . . . . . . . Robots Built . | . . . . . . . . . . . . . . . . . Authchips . | . . . . . . . . . . . . . . . . . Time . | . . . . . . . . . . . . . . . . . Total Robot Build Rating . | . . . . . . . . . . . . . . . . . Part Schematics Acquired 6 | . . . . . 1 5 . . . . . . . . . . Parts Built 2 | . . . . . . 2 . . . . . . . . . . Authchips 1 | . . . . . . 1 . . . . . . . . . . Time 42 | . . . . . . 42 . . . . . . . . . . Total Part Build Rating 8 | . . . . . . 8 . . . . . . . . . . Parts Repaired 3 | . 1 . . . 2 . . . . . . . . . . . Time 102 | . 26 . . . 76 . . . . . . . . . . . Parts Recycled . | . . . . . . . . . . . . . . . . . Recycled Matter . | . . . . . . . . . . . . . . . . . Retrieved Matter . | . . . . . . . . . . . . . . . . . Retrieved Components 9 | . . . . . . . . . . . . . . . 9 . Parts Scanalyzed 5 | . . . . . 1 4 . . . . . . . . . . Part Schematics Acquired 5 | . . . . . 1 4 . . . . . . . . . . Parts Damaged 1 | . . . . . . 1 . . . . . . . . . . Bothacking | -11 -10 -10 -10 -9 -8 -7 -6 -6 -5 -5 -5 -4 -4 -4 -3 -3 ------------ Run | Yrd Mat Min Exi Min Mat Fac Fac DSF Fac Upp Upp Fac Upp Upp Res Arm Used RIF Installer . | . . . . . . . . . . . . . . . . . Robots Hacked . | . . . . . . . . . . . . . . . . . Non-combat . | . . . . . . . . . . . . . . . . . Combat . | . . . . . . . . . . . . . . . . . Robot Hacks Applied . | . . . . . . . . . . . . . . . . . Relay Couplers Released . | . . . . . . . . . . . . . . . . . Fabnet Peak Effective % . | . . . . . . . . . . . . . . . . . Robots Rewired 2 | . . . . . . . . . . 2 . . . . . . Allies Hacked . | . . . . . . . . . . . . . . . . . Hacks Repelled . | . . . . . . . . . . . . . . . . . Allies | -11 -10 -10 -10 -9 -8 -7 -6 -6 -5 -5 -5 -4 -4 -4 -3 -3 -------- Run | Yrd Mat Min Exi Min Mat Fac Fac DSF Fac Upp Upp Fac Upp Upp Res Arm Total Allies 3 | . . 1 . . . . . . . 2 . . . . . . Largest Group 2 | . . 1 . . . . . . . 2 2 . . . . . Highest-Rated Group 98 | . . 31 . . . . . . . 98 98 . . . . . Highest-Rated Ally 49 | . . 31 . . . . . . . 49 49 . . . . . Warlord Squad Rendezvous 2 | . . . . . . . . . . . . . . . 2 . Dakka 1 | . . . . . . . . . . . . . . . 1 . Infantry 1 | . . . . . . . . . . . . . . . 1 . Total Orders . | . . . . . . . . . . . . . . . . . Ally Attacks 20 | . . . . . . . . . . 6 14 . . . . . Total Damage 673 | . . . . . . . . . . 193 480 . . . . . Kills 5 | . . . . . . . . . . 2 3 . . . . . Allies Corrupted . | . . . . . . . . . . . . . . . . . Allies Melted . | . . . . . . . . . . . . . . . . . Intel | -11 -10 -10 -10 -9 -8 -7 -6 -6 -5 -5 -5 -4 -4 -4 -3 -3 ------- Run | Yrd Mat Min Exi Min Mat Fac Fac DSF Fac Upp Upp Fac Upp Upp Res Arm Robot Analysis Total . | . . . . . . . . . . . . . . . . . Derelict Logs Recovered 4 | . . 1 . . . . . . . . 1 . 2 . . . Drone Launches 3 | . . . . . . . . . . 3 . . . . . . Drone Recoveries . | . . . . . . . . . . . . . . . . . Exploration | -11 -10 -10 -10 -9 -8 -7 -6 -6 -5 -5 -5 -4 -4 -4 -3 -3 ------------- Run | Yrd Mat Min Exi Min Mat Fac Fac DSF Fac Upp Upp Fac Upp Upp Res Arm Turns Passed 26944 | 242 4108 1352 992 207 3219 6206 306 345 779 2751 511 283 3597 273 1608 165 Spaces Moved 10959 | 93 1045 328 247 23 1044 1976 152 123 259 1545 255 218 1716 114 1530 291 Core 93 | 3 . . . . . 2 . . 33 . . . . . . 55 Treads 2729 | 90 406 . . . 716 871 . . 23 . . . 599 15 9 . Legs 6959 | . 639 328 247 23 328 1103 152 123 203 1545 255 218 1117 99 579 . Wheels . | . . . . . . . . . . . . . . . . . Hover . | . . . . . . . . . . . . . . . . . Flight 1178 | . . . . . . . . . . . . . . . 942 236 Fastest Speed 26 | 50 160 400 400 400 240 190 192 122 120 120 120 120 120 120 26 27 Average Speed 215 | 156 358 400 400 597 256 273 192 151 215 169 184 120 198 199 71 40 Slowest Speed 2650 | 160 480 400 400 750 480 2650 192 263 950 190 190 120 360 360 460 350 Overloaded Moves . | . . . . . . . . . . . . . . . . . Propulsion Burnouts . | . . . . . . . . . . . . . . . . . Robots Hopped . | . . . . . . . . . . . . . . . . . Cave-ins Triggered . | . . . . . . . . . . . . . . . . . Exploration Rate (%) 44 | 5 98 71 63 10 68 42 5 71 7 99 37 4 99 10 29 40 Regions Visited 16 Branch Regions 8 Pre-discovered Areas 1 | . . . . . . . . . . 1 . . . . . . Known Exits Taken 5 | . 1 1 . . . . 1 . . . . . 1 1 . . Unknown Exits Taken 10 | 1 . . 1 1 1 1 . . 1 1 1 1 . . 1 . Scrap Searched 8 | . . 1 . . . . . . . 3 1 . 2 1 . . Spaces Dug 15 | . . . . . . 10 . . 2 . . . . . 3 . Terrain Destroyed 983 | . . 45 . 5 . 99 . 2 219 171 77 . 212 . 14 139 Melee 15 | . . . . . . 10 . . 2 . . . . . 3 . Projectile 59 | . . . . . . 40 . 2 4 . . . 2 . 11 . AOE 909 | . . 45 . 5 . 49 . . 213 171 77 . 210 . . 139 Terrain Rammed . | . . . . . . . . . . . . . . . . . Walls Destroyed . | . . . . . . . . . . . . . . . . . Machines Disabled . | . . . . . . . . . . . . . . . . . Actions | -11 -10 -10 -10 -9 -8 -7 -6 -6 -5 -5 -5 -4 -4 -4 -3 -3 --------- Run | Yrd Mat Min Exi Min Mat Fac Fac DSF Fac Upp Upp Fac Upp Upp Res Arm Total 13125 | 134 1217 350 257 86 1380 2489 162 225 385 1634 285 239 1869 144 1946 323 Wait 806 | . 41 6 . 52 120 192 . 31 42 27 6 14 82 . 186 7 Move 10943 | 92 1044 327 246 22 1043 1975 151 122 258 1544 254 217 1715 113 1529 291 Hop . | . . . . . . . . . . . . . . . . . Pick Up 176 | 6 10 2 2 1 29 46 3 9 4 16 3 3 12 2 26 2 Fast Attach 130 | 6 2 . . . 17 25 1 6 17 6 4 . 9 1 31 5 Attach 113 | 1 5 . 3 1 7 38 3 4 5 11 . 2 7 5 16 5 Detach 71 | . 4 . 3 . 12 14 . 5 1 3 1 . 3 1 22 2 Swap 84 | . 4 4 . 2 10 15 1 8 3 . 5 2 6 3 21 . Drop 169 | . 3 1 3 1 35 22 1 10 3 4 8 1 15 3 56 3 Fire 508 | 29 101 10 . 7 104 127 2 30 17 19 4 . 10 7 39 2 Melee 95 | . . . . . . 26 . . 35 . . . 8 . 20 6 Ram . | . . . . . . . . . . . . . . . . . Kick 8 | . 3 . . . 2 3 . . . . . . . . . . Crush 2 | . . . . . 1 1 . . . . . . . . . . Escape Stasis 5 | . . . . . . 5 . . . . . . . . . . Rewire 15 | . . . . . . . . . . 4 . . 2 9 . . Trap . | . . . . . . . . . . . . . . . . . Miscellaneous . | . . . . . . . . . . . . . . . . . Route ------- -11/Scrapyard -10/Materials (discovered 6 exits: *Mat x3 / *Min x2 / *Sub) -10/Mines (discovered 3 exits: *Mat x2 / *Exi) -10/Exiles (discovered 2 exits: [*Min x2]) -9/Mines -8/Materials (discovered 2 exits: *Fac x2) -7/Factory (discovered 3 exits: *Fac x2 / [*Low]) -6/Factory -6/DSF -5/Factory -5/Upper Caves -5/Upper Caves -4/Factory (discovered 3 exits: Res x2 / *Upp) -4/Upper Caves -4/Upper Caves -3/Research -3/Armory History --------- Turn | Location | Event 8 | -11/Scrapyard | Discovered new exit (range 13) 243 | -11/Scrapyard | Entered Materials 301 | -10/Materials | Build established: Mutant 1241 | -10/Materials | Discovered new exit (range 10) 1648 | -10/Materials | Discovered new exit (range 16) 1667 | -10/Materials | Core integrity fell below 50% 1708 | -10/Materials | Lost 3 parts (1p2n) 2337 | -10/Materials | Discovered new exit (range 12) 2755 | -10/Materials | Repaired Lgt. Treads 3595 | -10/Materials | Discovered new exit (range 10) 3627 | -10/Materials | Identified exit to Materials 3955 | -10/Materials | Discovered new exit (range 8) 4019 | -10/Materials | Identified exit to Mines 4103 | -10/Materials | Discovered new exit (range 11) 4143 | -10/Materials | Identified exit to Subcaves 4351 | -10/Materials | Entered Mines 4354 | -10/Mines | Received a Mining Laser from a helpful Derelict 4356 | -10/Mines | Met a Derelict bent on vengeance 4393 | -10/Mines | Discovered exit to Materials (range 13) 5013 | -10/Mines | Assembled infested the area 5018 | -10/Mines | Assisted by a Guerilla fighting off Assembled 5520 | -10/Mines | Discovered exit to Materials (range 11) 5687 | -10/Mines | Deemed a non-threat by the Exiles lab entrance 5687 | -10/Mines | Discovered new exit (range 5) 5699 | -10/Mines | Identified exit to Exiles 5703 | -10/Mines | Entered Exiles 5767 | -10/Exiles | Discovered new exit (range 14) 5839 | -10/Exiles | Met 8R-AWN 5903 | -10/Exiles | Met EX-HEX 6075 | -10/Exiles | Met EX-BIN 6123 | -10/Exiles | Aligned with FarCom system 6127 | -10/Exiles | Given EX-Vault access code 6255 | -10/Exiles | Opened EX-Vault 6283 | -10/Exiles | Found Prototype Device 6285 | -10/Exiles | Identified Supersonic Drone Bay 6292 | -10/Exiles | Found Prototype Ballistic Cannon 6388 | -10/Exiles | Warned to stay clear of 0b10 Research branches 6492 | -10/Exiles | Met EX-DEC 6651 | -10/Exiles | Discovered new exit (range 14) 6695 | -10/Exiles | Left Exiles lab with AWS/Autocannon 6695 | -10/Exiles | Entered Mines 6761 | -9/Mines | Discovered new exit (range 11) 6902 | -9/Mines | Entered Materials 6902 | -8/Materials | Evolved 4 slots: Propulsion x1, Utility x2, Weapon x1 6904 | -8/Materials | Identified AWS/Autocannon 7215 | -8/Materials | Build established: Scavenger-Skirmisher 7638 | -8/Materials | Repaired Gauss Rifle 8526 | -8/Materials | Repaired Hrd. Light Armor Plating 8683 | -8/Materials | Build established: Gunner 9208 | -8/Materials | Discovered new exit (range 10) 9938 | -8/Materials | Discovered new exit (range 4) 10121 | -8/Materials | Entered Factory 10121 | -7/Factory | Evolved 2 slots: Propulsion x1, Utility x1 10778 | -7/Factory | Build established: Mutant 10959 | -7/Factory | Discovered new exit (range 16) 11067 | -7/Factory | Discovered new exit (range 8) 11116 | -7/Factory | Hacking Suite fried by hacking feedback 11246 | -7/Factory | Lost 9 parts (1p4n1u3w) 11366 | -7/Factory | Found Prototype Launcher 11366 | -7/Factory | Identified Rocket Array 11668 | -7/Factory | Build established: Hacker-Skirmisher 11703 | -7/Factory | Cargo convoy interrupted 12676 | -7/Factory | Lost 9 parts (2p3n3u1w) 12911 | -7/Factory | Discovered new exit (range 12) 13879 | -7/Factory | Core integrity fell below 50% 14196 | -7/Factory | Build established: Scavenger-Mutant 14415 | -7/Factory | Lost 5 parts (1p3n1u) 14433 | -7/Factory | Destroyed 9 combat bots 14736 | -7/Factory | Build established: Scavenger-Gunner 14883 | -7/Factory | Fabricated Powered Armor (x2) 15145 | -7/Factory | Build established: Scavenger-Skirmisher 15270 | -7/Factory | Lost 7 parts (1p4n1u1w) 15321 | -7/Factory | First assault squad dispatched 15395 | -7/Factory | Core integrity fell below 20% 15440 | -7/Factory | Lost 3 parts (1p2w) 15478 | -7/Factory | Destroyed 9 combat bots 15961 | -7/Factory | Lost 3 parts (1n1u1w) 16179 | -7/Factory | System corruption reached 10% 16327 | -7/Factory | Entered another Factory area 16327 | -6/Factory | Evolved 2 slots: Power x1, Utility x1 16633 | -6/Factory | Identified exit to DSF 16633 | -6/Factory | Entered DSF 16686 | -6/DSF | Additional patrols routed to DSF 16819 | -6/DSF | Found Prototype Device 16819 | -6/DSF | Identified Active Sensor Suite 16827 | -6/DSF | Lost 14 parts (1p5n5u3w) 16898 | -6/DSF | Sterilization system engaged 16918 | -6/DSF | Ambient heat levels rising (+10) 16933 | -6/DSF | Ambient heat levels rising (+10) 16948 | -6/DSF | Ambient heat levels rising (+10) 16960 | -6/DSF | Discovered new exit (range 16) 16963 | -6/DSF | Ambient heat levels rising (+10) 16978 | -6/DSF | Ambient heat levels rising (+10) 16978 | -6/DSF | Entered Factory 16978 | -5/Factory | Evolved 2 slots: Propulsion x1, Utility x1 17184 | -5/Factory | Found Rocket Array 17358 | -5/Factory | Lost 12 parts (1p5n3u3w) 17585 | -5/Factory | Lost 4 parts (2p2u) 17600 | -5/Factory | Build established: Mutant 17605 | -5/Factory | System corruption reached 10% 17702 | -5/Factory | Discovered new exit (range 15) 17703 | -5/Factory | Core integrity fell below 50% 17744 | -5/Factory | Lost 4 parts (1p1n2w) 17757 | -5/Factory | Entered Upper Caves 17800 | -5/Upper Caves | Met a Warlord Commander 17801 | -5/Upper Caves | Learned location of Warlord (-4) 17802 | -5/Upper Caves | Warlord Commander delivered Encrypted Comm Array 17809 | -5/Upper Caves | Found Encrypted Comm Array 17988 | -5/Upper Caves | Build established: Scavenger-Gunner 18090 | -5/Upper Caves | Attracted the attention of an 0b10 outpost 18125 | -5/Upper Caves | Destroyed 9 combat bots 18292 | -5/Upper Caves | Build established: Scavenger-Mutant 18552 | -5/Upper Caves | Attracted the attention of an 0b10 checkpoint 18603 | -5/Upper Caves | Lost 4 parts (1p1n2u) 18898 | -5/Upper Caves | Build established: Scavenger-Gunner 20405 | -5/Upper Caves | Discovered new exit (range 6) 20508 | -5/Upper Caves | Entered another Upper Caves area 20508 | -5/Upper Caves | Accompanied by 2 allies 20593 | -5/Upper Caves | Spotted B-75 Beast 20604 | -5/Upper Caves | Destroyed B-75 Beast 20641 | -5/Upper Caves | Encountered a Warlord checkpoint 20666 | -5/Upper Caves | Discovered new exit (range 8) 20795 | -5/Upper Caves | Build established: Derelict-Tank 20871 | -5/Upper Caves | Learned 8 Factory zone layouts 20958 | -5/Upper Caves | Ambushed by wild Derelicts 21019 | -5/Upper Caves | Entered Factory 21019 | -4/Factory | Evolved 2 slots: Utility x1, Weapon x1 21020 | -4/Factory | Identified exit to Research 21264 | -4/Factory | Build established: Scavenger-Tank 21272 | -4/Factory | Discovered new exit (range 14) 21302 | -4/Factory | Entered Upper Caves 21347 | -4/Upper Caves | Spotted B-86 Titan 21364 | -4/Upper Caves | Destroyed B-86 Titan 21393 | -4/Upper Caves | Lost 5 parts (2p1n1u1w) 22305 | -4/Upper Caves | Encountered a Warlord checkpoint 22327 | -4/Upper Caves | Identified exit to Upper Caves 23365 | -4/Upper Caves | Build established: Derelict-Tank 23441 | -4/Upper Caves | Attracted the attention of an 0b10 checkpoint 24890 | -4/Upper Caves | Build established: Scavenger-Tank 24899 | -4/Upper Caves | Entered another Upper Caves area 24957 | -4/Upper Caves | Discovered exit to Research (range 15) 25104 | -4/Upper Caves | Spotted B-86 Titan 25144 | -4/Upper Caves | Lost 3 parts (2n1u) 25172 | -4/Upper Caves | Entered Research 25172 | -3/Research | Evolved 2 slots: Utility x2 25437 | -3/Research | Found Prototype Processor 25437 | -3/Research | Identified Spectral Analyzer 25442 | -3/Research | Found Prototype Device 25442 | -3/Research | Identified Exp. Thermal Shield 25446 | -3/Research | Found Spectral Analyzer 25718 | -3/Research | Build established: Scavenger-Gunner 26032 | -3/Research | Build established: Gunner 26237 | -3/Research | Joined by Warlord Infantry squad 26583 | -3/Research | Lost 3 parts (2u1w) 26667 | -3/Research | Joined by Warlord Dakka squad 26729 | -3/Research | Found Enh. Force Lance 26735 | -3/Research | Lost 3 allies 26764 | -3/Research | Discovered new exit (range 9) 26767 | -3/Research | Found Prototype Launcher 26768 | -3/Research | Identified Tactical Quantum Warhead 26780 | -3/Research | Entered Armory 26788 | -3/Armory | Found Unknown Launcher 26804 | -3/Armory | Identified Gamma Bomb Array 26852 | -3/Armory | Core integrity fell below 50% 26869 | -3/Armory | Destroyed 8 combat bots 26882 | -3/Armory | Lost 10 parts (3p3n2u2w) 26887 | -3/Armory | Core integrity fell below 20% 26935 | -3/Armory | System corruption reached 10% 26945 | -3/Armory | Destroyed by X-77 Beamer with Gatling Laser Last Messages --------------- 26914_ Arcs of energy rise from the floor. 26914_ Imp. Target Analyzer blown off. 26914_ Enh. Force Lance blown off. 26915_ Slug penetrates Wall. 26915_ O-24 Administrator suffers critical hit (Destroy). 26915_ O-24 Administrator destroyed. 26915_ Penetrated by Slug. 26915_ Adv. System Shield destroyed. 26915_ Slug penetrates Wall. 26915_ Penetrated by Slug. 26915_ Imp. Diametric Drive destroyed. 26915_ Slug penetrates Wall. 26928_ Acquired Prototype Reactor. 26928_ Identified Cld. Antimatter Reactor. 26929_ Dropped Cld. Antimatter Reactor. 26934_ Imp. System Guard destroyed. 26934_ Penetrated by Slug. 26934_ Slug penetrates Wall. [Achievement: 20k Club] [Achievement: Just Browsing] Map ----- +----------------------------------------------------+ | ?????????????????????????????????????????????????? | | ?????????????????????????????????????????????????? | | ?????????????????????????????????????????????????? | | ?????????????????????????????????????????????????? | | ?????????????????????????????????????????????????? | | ?????????????????????????????????????????????????? | | ?????????????????????????????????????????????????? | | ??????????????????????????????########???????????? | | ??????????????????????????????# #????????###+ | | ??????????????????????????????# ##+####### | | ??????????????????????????????+ | | ??????????????????????????????# | | ??????????????????????????????#"" | | ??????????????????????????????#" !!! | | ??????????????????????????????#"F !!! | | ???????????????????????#+?????#"" !!! | | ???????????????????????# ?????# | | ???????????????????????# ?????# | | ???????????????????????# ?????# | | ???????????????????????# ###### """"" | | ???????????????????????# !!! """"" | | ???????????????????????# !!! """"" | | ???????????????????????# !!! g""""" | | ???????????????????????+ x g g | | ???????????????????????# x Y | | ???????????????????????##@ ####+#######YhY | | ????????????????????????# # g #?########## | | ????????????????????????# # #??????????# | | ????????????????????????# # #??????????# | | ????????????????????????# # *** #??????????# | | ????????????????????????# # *** #??????????# | | ????????????????????????# # *** #??????????# | | ????????????????????????# # #??????????# | | ????????????????????????# ###/####### """ #?? | | ????????????????????????# #?#pg / #?# | | ????????????????????????# #?# ###### #?##+/ | | ????????????????????????# #?# #???????????????? | | ????????????????????????# #?# g#????????????????? | | ????????????????????????# g###g ######???????????? | | ????????????????????????# Yp #???????????? | | ????????????????????????# #???????????? | | ????????????????????????######+#### +???????????? | | ???????????????????????????????????? #???????????? | | ?????????????????????????????????????#???????????? | | ???????????????????????????????????????????##### | | ?????????????????????????????????????? | | ?????????????????????????????????????? | | ?????????????????????????????????????????####### | | ???????????????????????????????????????????????# ? | | ?????????????????????????????????????????????????? | +----------------------------------------------------+ Best States ------------- Heat Dissipation 66 Energy Generation 45 Energy Capacity 600 Matter Stores 300 Matter Capacity 300 Sight Range 24 Robot Scan Range 20 Terrain Scan Range 16 Terrain Scan Density 10 Jamming Range 14 Base Temperature (-) 200 Corruption Containment 12 Armor Coverage 1225 Resistance: TH 30 Resistance: EX 50 Power Shielding 90 Utility Shielding 66 Weapon Cycling 15 Evasion (%) 64 Targeting Accuracy 8 Target Analysis 6 Core Analysis 6 Recoil Reduction 4 Particle Charging 15 Kinecelleration 30 Offensive Hacking 30 Defensive Hacking 14 Authchip Count 3 Item Schematics ----------------- Hacking Suite | -8/Materials | Scanalyzed Powered Armor | -7/Factory | Hacked Rocket Array | -7/Factory | Scanalyzed Launcher Guidance Computer | -7/Factory | Scanalyzed Imp. Grenade Launcher | -7/Factory | Scanalyzed Transport Network Coupler | -7/Factory | Scanalyzed Robot Schematics ------------------ None Fabricated ------------ Powered Armor | x2 | -7/Factory | Authchip Alien Tech Used ----------------- None Achievements -------------- 20k Club Just Browsing Oh No You Don't! Quick And Dirty Tank Challenges ------------ None Game ------ Seed DispersionDisposableLaser Manual? 0 Play Time 04:02:54 Cumulative 38.7 hours Start 2024.04.06 @ 15:32:32 End 2024.04.06 @ 20:21:43 Sessions 1 Manual Loads 0 Difficulty Rogue Special Mode None Game No. 25 Rogue 25 Adventurer 0 Explorer 0 Win Type - Total 0 Types 0/0/0/0/0/0/0/0/0 Lore% 24 Gallery% 30 Achievement% 24 Wizard Run 0 Options --------- Layout 0 ASCII 0 Keyboard 1 Movement Numpad Keybinds 0 Fullscreen 2 Font 24/Smallcaps Map View 76x56 Zoom Use 0% Tactical HUD 1 Map Filters NONE Filters NONE Steam 1 RUN: 6313142c-b5ff-4d44-92d8-ea3d97a4fa42